Cogmind - Beta 13 @@@ ROGUE MODE // 2024.03.31 @ 22:50:36 Player: BigMaxPorter Result: Destroyed by D-53 Grenadier with Mini Grenade Launcher Performance ------------- Evolutions (0) 0 Regions Visited (2) 400 Robots Destroyed (5) 25 Value Destroyed (135) 135 Prototype IDs (0) 0 Alien Tech Used (0) 0 Bonus (0) 0 TOTAL SCORE: 560 Bonus ------- None Cogmind --------- Core Integrity 0/250 Matter 338/500 Energy 99/100 System Corruption 5% Temperature Cool (0) Movement Core (100) Ox1 Location -10/Mines Parts ------- > --- POWER (1) -------- (None) > --- PROPULSION (2) --- (None) > --- UTILITY (2) ------ High-capacity Matter Pod > --- WEAPON (2) ------- Backup Laser I > --- INVENTORY (5) ---- Large Storage Unit Terrain Scanner Targeting Computer Peak State ------------ > --- POWER ------------ Light Ion Engine > --- PROPULSION ------- Aluminum Leg Aluminum Leg > --- UTILITY ---------- High-capacity Matter Pod Targeting Computer > --- WEAPON ----------- EM Pulse Gun Light Assault Rifle > --- INVENTORY -------- (None) [Rating: 7] Favorites ----------- Power Light Ion Engine Engine Light Ion Engine Propulsion Aluminum Leg Leg Aluminum Leg Wheel Wheel Utility Targeting Computer Storage Huge Storage Unit Processor Targeting Computer Weapon Light Assault Rifle Energy Gun Backup Laser I Ballistic Gun Light Assault Rifle Launcher Grenade Launcher Build | -11 -10 -10 ------- Run | Yrd Mat Min Slots Evolved . | . . . Power . | . . . Propulsion . | . . . Utility . | . . . Weapon . | . . . Parts Attached 14 | 7 2 5 Power 1 | 1 . . Engine 1 | 1 . . Core . | . . . Reactor . | . . . Propulsion 4 | 4 . . Treads . | . . . Leg 2 | 2 . . Wheel 2 | 2 . . Hover . | . . . Flight . | . . . Utility 4 | . 2 2 Device . | . . . Storage 3 | . 1 2 Processor 1 | . 1 . Hackware . | . . . Protection . | . . . Artifact . | . . . Weapon 5 | 2 . 3 Energy Gun 1 | 1 . . Energy Cannon . | . . . Ballistic Gun 3 | 1 . 2 Ballistic Cannon . | . . . Launcher 1 | . . 1 Special Weapon . | . . . Impact Weapon . | . . . Slashing Weapon . | . . . Piercing Weapon . | . . . Special Melee Weapon . | . . . Unidentified Prototypes . | . . . Parts Lost 6 | . . 6 Power 1 | . . 1 Propulsion 2 | . . 2 Utility 1 | . . 1 Weapon 2 | . . 2 Highest Loss Streak 5 | . . 5 To Critical Strikes . | . . . Average Slot Usage (%) 98 | . 96 98 Engine 13 | . 14 13 Leg 27 | . 28 27 Storage 13 | . 11 14 Processor 13 | . 12 13 Energy Gun 14 | . 14 14 Ballistic Gun 13 | . 14 13 Naked Turns . | . . . Heaviest Build 87 | 6 10 87 Greatest Support 20 | 20 20 20 Greatest Overweight (x) 4 | . . 4 Average Overweight (x) 1 | . . 1 Largest Inventory Capacity 25 | 5 5 25 Average Capacity 15 | 5 5 18 Most Carried 5 | 2 1 5 Average Carried 3 | . . 3 Final Capacity 5 | 5 5 5 Final Carried 3 | . 1 3 Class Distribution -------------------- 100% | Mutant Dominant Class ---------------- Mutant | -10/Materials Mutant | -10/Mines Resources | -11 -10 -10 ----------- Run | Yrd Mat Min Matter Collected 373 | 247 . 126 Remotely . | . . . Salvage Created 152 | 50 . 102 Parts 9 | 3 . 6 Haulers Intercepted . | . . . Recyclers Shooed . | . . . Parts Field Recycled . | . . . Retrieved Matter . | . . . Parts Self-Destructed . | . . . Prevented . | . . . Kills | -11 -10 -10 ------- Run | Yrd Mat Min Combat Hostiles Destroyed 5 | 1 . 4 Guns 4 | 1 . 3 AOE 1 | . . 1 Classes Destroyed 2 | 1 . 1 Swarmer 2 | . . 2 Grunt 3 | 1 . 2 Best Kill Streak 2 | 1 . 2 Combat Bots Only 2 | 1 . 2 Max Kills in Single Turn 1 | 1 . 1 Gunslinging . | . . . Exploded 1 | . . 1 Melee . | . . . Uniques/NPCs Destroyed . | . . . Combat | -11 -10 -10 -------- Run | Yrd Mat Min Hostile Shots Fired 73 | 8 2 63 Missed 32 | 5 1 26 Damage Taken 708 | 33 7 668 Core 251 | 11 . 240 Absorbed by Shields . | . . . Core Remaining (%) 95 | 95 . . Volleys Fired 19 | 7 . 12 Largest 2 | 2 . 2 Hottest 60 | 60 . 60 Shots Fired 35 | 14 . 21 Gun 33 | 14 . 19 Cannon . | . . . Launcher 2 | . . 2 Special . | . . . Kinetic 17 | 7 . 10 Thermal 9 | . . 9 Explosive 2 | . . 2 Electromagnetic 7 | 7 . . Robot Hit Streak 5 | 3 . 5 Robot Miss Streak 4 | 4 . 4 Penetration Max . | . . . Secondary Targets . | . . . Shots Hit Robots 17 | 7 . 10 Core Hits 9 | 2 . 7 Critical Kills . | . . . Critical Parts Destroyed . | . . . Critical Strikes 1 | 1 . . Corrupt 1 | 1 . . Melee Attacks . | . . . Impact . | . . . Slashing . | . . . Piercing . | . . . Sneak Attacks . | . . . Combat Hostiles . | . . . Follow-up Attacks . | . . . Damage Inflicted 301 | 100 . 201 Guns 167 | 93 . 74 Cannons . | . . . Explosions 122 | . . 122 Melee . | . . . Ramming 12 | 7 . 5 Kinetic 66 | 29 . 37 Thermal 37 | . . 37 Explosive 122 | . . 122 Electromagnetic 64 | 64 . . Impact . | . . . Slashing . | . . . Piercing . | . . . Highest Corruption 5 | . . 5 Average Corruption 3 | . . 3 Corruption Purged . | . . . Corruption Blocked . | . . . Effects 1 | . . 1 Heat Flow Errors 1 | . . 1 Overload Shots . | . . . Overflow Damage . | . . . Projectiles . | . . . Explosions . | . . . Melee . | . . . Knockbacks 1 | . . 1 Impact 1 | . . 1 Kinetic . | . . . Secondary . | . . . Self-Inflicted Damage . | . . . Shots . | . . . Rammed . | . . . Targets Rammed 4 | 3 . 1 Kicked 4 | 3 . 1 Crushed . | . . . Highest Temperature 169 | 78 . 169 Average Temperature 37 | 42 . 33 Received Heat Transfer 177 | 18 . 159 Siege Activations . | . . . Robots Corrupted . | . . . Combat Hostiles . | . . . Parts Fried 1 | 1 . . Impact Corruptions . | . . . Robots Melted . | . . . Combat Hostiles . | . . . Parts Melted . | . . . Heat Transferred 148 | . . 148 Parts Sabotaged . | . . . Parts Stolen . | . . . Parts Stripped . | . . . Power Chain Reactions . | . . . Alert | -11 -10 -10 ------- Run | Yrd Mat Min Peak Influence 75 | 20 67 75 Initial 25 | . 13 25 Average 24 | 7 19 28 Maximum Alert Level . | . . . Low Security (%) 100 | 100 100 100 Level 1 . | . . . Level 2 . | . . . Level 3 . | . . . Level 4 . | . . . Level 5 . | . . . High Security . | . . . Max Security . | . . . Squads Dispatched . | . . . Investigation . | . . . Extermination . | . . . Reinforcement . | . . . Assault . | . . . Garrison . | . . . Intercept . | . . . Searches Triggered . | . . . Construction Impeded . | . . . Haulers Reinforced . | . . . Active Scanning Responses . | . . . Cargo Convoy Interrupts . | . . . Stealth | -11 -10 -10 --------- Run | Yrd Mat Min Distress Signals 1 | . 1 . Communications Jammed . | . . . Distress Signals . | . . . Times Spotted 26 | 1 3 22 Peak Tracking Total 13 | 1 5 13 Tactical Retreats 1 | . 1 . Traps | -11 -10 -10 ------- Run | Yrd Mat Min Traps Triggered . | . . . Indirectly . | . . . Trap Hack Attempts . | . . . Triggered . | . . . Disarmed . | . . . Reprogrammed . | . . . Reused . | . . . Traps Extracted . | . . . Installed . | . . . Triggered . | . . . Machines | -11 -10 -10 ---------- Run | Yrd Mat Min Machines Disabled . | . . . Max in Single Turn . | . . . Machines Repaired . | . . . Machines Dismantled . | . . . Machines Sabotaged . | . . . Overloaded Fab Kills . | . . . Hacking | -11 -10 -10 --------- Run | Yrd Mat Min Machines Accessed 1 | . 1 . Terminals . | . . . Fabricators . | . . . Repair Stations 1 | . 1 . Recycling Units . | . . . Scanalyzers . | . . . Garrison Access . | . . . Total Hacks 5 | . 5 . Successful 4 | . 4 . Failed 1 | . 1 . Catastrophic . | . . . Database Lockouts . | . . . Manual . | . . . Terminals . | . . . Fabricators . | . . . Repair Stations 5 | . 5 . Recycling Units . | . . . Scanalyzers . | . . . Garrison Access . | . . . Terminal Hacks . | . . . Fabricator Hacks . | . . . Repair Station Hacks 4 | . 4 . Scan Component 2 | . 2 . Repair 1 | . 1 . Refit 1 | . 1 . Recycling Unit Hacks . | . . . Scanalyzer . | . . . Garrison Access Hacks . | . . . Unauthorized Hacks . | . . . Terminals . | . . . Fabricators . | . . . Repair Stations . | . . . Recycling Units . | . . . Scanalyzers . | . . . Garrison Access . | . . . Data Cores Recovered . | . . . Used . | . . . Hacking Detections . | . . . Full Trace Events . | . . . Feedback Events . | . . . Feedback Blocked . | . . . Robot Schematics Acquired . | . . . Robots Built . | . . . Authchips . | . . . Time . | . . . Total Robot Build Rating . | . . . Part Schematics Acquired . | . . . Parts Built . | . . . Authchips . | . . . Time . | . . . Total Part Build Rating . | . . . Parts Repaired . | . . . Time 26 | . 26 . Parts Recycled . | . . . Recycled Matter . | . . . Retrieved Matter . | . . . Retrieved Components . | . . . Parts Scanalyzed . | . . . Part Schematics Acquired . | . . . Parts Damaged . | . . . Bothacking | -11 -10 -10 ------------ Run | Yrd Mat Min Used RIF Installer . | . . . Robots Hacked . | . . . Non-combat . | . . . Combat . | . . . Robot Hacks Applied . | . . . Relay Couplers Released . | . . . Fabnet Peak Effective % . | . . . Robots Rewired . | . . . Allies Hacked . | . . . Hacks Repelled . | . . . Allies | -11 -10 -10 -------- Run | Yrd Mat Min Total Allies . | . . . Largest Group . | . . . Highest-Rated Group . | . . . Highest-Rated Ally . | . . . Total Orders . | . . . Ally Attacks . | . . . Total Damage . | . . . Kills . | . . . Allies Corrupted . | . . . Allies Melted . | . . . Intel | -11 -10 -10 ------- Run | Yrd Mat Min Robot Analysis Total . | . . . Derelict Logs Recovered . | . . . Drone Launches . | . . . Drone Recoveries . | . . . Exploration | -11 -10 -10 ------------- Run | Yrd Mat Min Turns Passed 1039 | 130 116 793 Spaces Moved 511 | 92 94 325 Core 26 | 18 . 8 Treads . | . . . Legs 479 | 68 94 317 Wheels 6 | 6 . . Hover . | . . . Flight . | . . . Fastest Speed 50 | 50 120 100 Average Speed 187 | 103 120 230 Slowest Speed 400 | 120 120 400 Overloaded Moves . | . . . Propulsion Burnouts . | . . . Robots Hopped . | . . . Cave-ins Triggered . | . . . Exploration Rate (%) 28 | 9 18 57 Regions Visited 2 Branch Regions 1 Pre-discovered Areas 1 | . . 1 Known Exits Taken . | . . . Unknown Exits Taken 2 | 1 1 . Scrap Searched 1 | . . 1 Spaces Dug . | . . . Terrain Destroyed 11 | . . 11 Melee . | . . . Projectile . | . . . AOE 11 | . . 11 Terrain Rammed . | . . . Walls Destroyed . | . . . Machines Disabled . | . . . Actions | -11 -10 -10 --------- Run | Yrd Mat Min Total 558 | 112 96 350 Wait 1 | . . 1 Move 509 | 91 93 325 Hop . | . . . Pick Up 7 | 2 1 4 Fast Attach 7 | 5 2 . Attach 5 | 2 . 3 Detach 1 | . . 1 Swap 2 | . . 2 Drop 3 | 2 . 1 Fire 19 | 7 . 12 Melee . | . . . Ram . | . . . Kick 4 | 3 . 1 Crush . | . . . Escape Stasis . | . . . Rewire . | . . . Trap . | . . . Miscellaneous . | . . . Route ------- -11/Scrapyard -10/Materials -10/Mines (discovered 1 exit: [*Mat]) History --------- Turn | Location | Event 2 | -11/Scrapyard | Met Revision 17 64 | -11/Scrapyard | Discovered new exit (range 8) 131 | -11/Scrapyard | Entered Materials 216 | -10/Materials | Discovered new exit (range 11) 247 | -10/Materials | Entered Mines 248 | -10/Mines | Learned location of Storage (-8) 304 | -10/Mines | Build established: Mutant 437 | -10/Mines | Met a Derelict bent on vengeance 688 | -10/Mines | Found a hidden stash of uninstalled traps 990 | -10/Mines | Discovered new exit (range 10) 991 | -10/Mines | Assembled infested the area 996 | -10/Mines | Assisted by a Guerilla fighting off Assembled 1025 | -10/Mines | Core integrity fell below 50% 1040 | -10/Mines | Destroyed by D-53 Grenadier with Mini Grenade Launcher Last Messages --------------- Lgt. Assault Rifle destroyed. System corrupted by crushing effect (+1). as-45003 destroyed. Knocked back. System corrupted: Heat flow error (+192). Lgt. Ion Engine destroyed. System corrupted by crushing effect (+3). Knocked back. C-30 ARC bursts open, deploying its payload. D-53 Grenadier unfolds itself. as-29890 destroyed. as-28598 destroyed. as-90696 destroyed. Aluminum Leg destroyed. as-36980 destroyed. as-01111 destroyed. as-64412 destroyed. as-97275 destroyed. as-81699 destroyed. as-91867 destroyed. Map ----- +----------------------------------------------------+ | ?????????????????????????????????????????????????? | | ?????????????????????????????????????????????????? | | ?????????????????????????????????????????????????? | | ????????????????????????????#????????????????????? | | ????????????????????????????# ???????????????????? | | ????????????????????????????# ???????????????????? | | ????????????????????????????# ??????????????????? | | ????????????????????????????# ## ??#????????????? | | ????????????????????????????# # #????????????? | | ??????????????????????????# ?????????????? | | ??????????????????????????# """" #?????????????? | | ?????????????????????????? """" ##????????????? | | $ ##????????????????????????? """" #????????????# | | ##???????????????????????? ??????????????# | | ?????????????????????????# ????????????????# | | < ?????????????????????????# #?????????????????# | | ?????????????????????????# #?????????????????# | | #?????????????????????????# #####?????????????? | | #?####???????####?????????# #?????????????? | | ?? #??????## ##????????##### ###???????????? | | ?? #?????## #?????????#### & ##??????????? | | ???# #?????# #????????## & #??????????? | | ???# #?????# #????????# & #??????????? | | #???# #????## ####????# ##?#####????? | | %#???# #????# ####### # ##### #????? | | ##### #????# @% r #????? | | % %## #????# d ##### ##???? | | %% #?# d ############???## ####? | | #" ## #???????????????# ## | | #%% # #???????????????## # | | ?# % % #????????????????### | | ?# ##??????????????????## | | ?# ##????????????????????## | | ?## #??????????????????????## | | ??# ## #???????????????????????# | | ?## #? #??????????????????????## | | ## ! ##?# ## #??????????????????????## | | # ##???# ##### #??????????????????????# | | #????# #???? #??????????????????????# | | ##????# #????# #??????????????????????# | | #######?????# #?????###??????????????????????# | | ##???????????# #????????????????????????????? | | #????????????? ???????????????????????????? ## | | #????????????? ?????????????????????????? ??# | | ##???????????????????????????????????????# #???# | | # #???????????????????????????????????????#?????# | | # #?????????????????????????????????????????????# | | #????????????????????????????????????????????? | | #?????????????????????????????????????????????# | | #?????????????????????????????????????????????? | +----------------------------------------------------+ Best States ------------- Heat Dissipation 25 Energy Generation 10 Energy Capacity 125 Matter Stores 338 Matter Capacity 500 Sight Range 16 Terrain Scan Density 10 Evasion (%) 55 Targeting Accuracy 5 Item Schematics ----------------- None Robot Schematics ------------------ None Fabricated ------------ Nothing Alien Tech Used ----------------- None Achievements -------------- None Challenges ------------ None Game ------ Seed LightningSniperBoomstick Manual? 0 Play Time 00:09:07 Cumulative 1.1 hours Start 2024.03.31 @ 22:41:55 End 2024.03.31 @ 22:50:36 Sessions 1 Manual Loads 0 Difficulty Rogue Special Mode None Game No. 3 Rogue 3 Adventurer 0 Explorer 0 Win Type - Total 0 Types 0/0/0/0/0/0/0/0/0 Lore% 0 Gallery% 6 Achievement% 6 Wizard Run 0 Options --------- Layout 1 ASCII 0 Keyboard 0 Movement Mouse Keybinds 0 Fullscreen 1 Font 24/Smallcaps Map View 50x35 Zoom Use 0% Tactical HUD 0 Map Filters NONE Filters NONE Steam 1 RUN: 5667d253-b481-44f3-9174-5d7055d67dc1